[Event "Late-Titled-Tuesday-Blitz-September-26-2023"]
[Site "Chess.com"]
[Date "2023.09.26"]
[Round "9"]
[White "Hikaru"]
[Black "mitrabhaa"]
[Result "0-1"]
[WhiteElo "3162"]
[BlackElo "2852"]
[TimeControl "180+1"]
[EndTime "15:42:21 PDT"]
[Termination "mitrabhaa won by resignation"]

1. Nf3 {[%clk 0:02:47.6]} 1... Nf6 {[%clk 0:02:47]} 2. e3 {[%clk 0:02:45.4]}
2... d5 {[%clk 0:02:42.7]} 3. c4 {[%clk 0:02:44.5]} 3... e6 {[%clk 0:02:43.1]}
4. b3 {[%clk 0:02:44.3]} 4... Bd6 {[%clk 0:02:42.5]} 5. Bb2 {[%clk 0:02:43.7]}
5... O-O {[%clk 0:02:42.8]} 6. g3 {[%clk 0:02:44.4]} 6... b6 {[%clk 0:02:42.8]}
7. Bg2 {[%clk 0:02:44.4]} 7... Bb7 {[%clk 0:02:43.4]} 8. O-O {[%clk 0:02:44.4]}
8... Nbd7 {[%clk 0:02:44]} 9. d3 {[%clk 0:02:44]} 9... a6 {[%clk 0:02:44.1]} 10.
Qe2 {[%clk 0:02:44.3]} 10... Qe7 {[%clk 0:02:44.5]} 11. Nc3 {[%clk 0:02:41.9]}
11... c5 {[%clk 0:02:44.5]} 12. Rfd1 {[%clk 0:02:37.6]} 12... Rfd8 {[%clk
0:02:44]} 13. Rac1 {[%clk 0:02:35.3]} 13... Rac8 {[%clk 0:02:39.6]} 14. Nh4
{[%clk 0:02:35.5]} 14... Bb8 {[%clk 0:02:33.5]} 15. cxd5 {[%clk 0:02:33.4]}
15... exd5 {[%clk 0:02:32.6]} 16. d4 {[%clk 0:02:31.8]} 16... Qe6 {[%clk
0:02:24.1]} 17. dxc5 {[%clk 0:02:28.2]} 17... bxc5 {[%clk 0:02:25]} 18. Nf3
{[%clk 0:02:24.9]} 18... h6 {[%clk 0:02:23.8]} 19. Qf1 {[%clk 0:02:10.5]} 19...
Qe7 {[%clk 0:02:15.1]} 20. Na4 {[%clk 0:02:04.6]} 20... Re8 {[%clk 0:02:00.6]}
21. Ne1 {[%clk 0:01:55.4]} 21... Ne4 {[%clk 0:01:50.5]} 22. Nd3 {[%clk
0:01:53.4]} 22... Bd6 {[%clk 0:01:50.2]} 23. Nc3 {[%clk 0:01:42.1]} 23... Nef6
{[%clk 0:01:39.2]} 24. Ne2 {[%clk 0:01:39.3]} 24... Ba8 {[%clk 0:01:20.8]} 25.
Ndf4 {[%clk 0:01:35.5]} 25... Nb6 {[%clk 0:01:17.9]} 26. Bxf6 {[%clk 0:01:33]}
26... Qxf6 {[%clk 0:01:17.6]} 27. Nxd5 {[%clk 0:01:33.5]} 27... Bxd5 {[%clk
0:01:11.1]} 28. Bxd5 {[%clk 0:01:34.4]} 28... a5 {[%clk 0:01:11.3]} 29. Bg2
{[%clk 0:01:28]} 29... Be5 {[%clk 0:01:11.1]} 30. Qe1 {[%clk 0:01:23.5]} 30...
a4 {[%clk 0:01:11]} 31. Qa5 {[%clk 0:01:20.9]} 31... axb3 {[%clk 0:01:09.8]} 32.
axb3 {[%clk 0:01:21.8]} 32... c4 {[%clk 0:01:10.4]} 33. bxc4 {[%clk 0:01:08.1]}
33... Nxc4 {[%clk 0:01:10.1]} 34. Qb5 {[%clk 0:01:04.4]} 34... Nd6 {[%clk
0:01:00.5]} 35. Rxc8 {[%clk 0:01:00.6]} 35... Rxc8 {[%clk 0:01:01.4]} 36. Qd5
{[%clk 0:01:00.7]} 36... Rc2 {[%clk 0:00:51.7]} 37. Qa8+ {[%clk 0:00:52.8]}
37... Rc8 {[%clk 0:00:51.9]} 38. Qa6 {[%clk 0:00:50.4]} 38... Rd8 {[%clk
0:00:48.1]} 39. Qa4 {[%clk 0:00:35.2]} 39... Qe7 {[%clk 0:00:45.6]} 40. h4
{[%clk 0:00:28.5]} 40... Nf5 {[%clk 0:00:42.7]} 41. Rxd8+ {[%clk 0:00:25.4]}
41... Qxd8 {[%clk 0:00:43.6]} 42. Qe4 {[%clk 0:00:25.8]} 42... Qf6 {[%clk
0:00:37.7]} 43. Qa8+ {[%clk 0:00:25.1]} 43... Kh7 {[%clk 0:00:36.4]} 44. Be4
{[%clk 0:00:19.6]} 44... g6 {[%clk 0:00:36]} 45. h5 {[%clk 0:00:18.9]} 45... Kg7
{[%clk 0:00:32.4]} 46. hxg6 {[%clk 0:00:19.1]} 46... fxg6 {[%clk 0:00:33.3]} 47.
Qd5 {[%clk 0:00:18.8]} 47... Ne7 {[%clk 0:00:33.1]} 48. Qb7 {[%clk 0:00:18.2]}
48... h5 {[%clk 0:00:33]} 49. Bg2 {[%clk 0:00:15.2]} 49... h4 {[%clk 0:00:30.4]}
50. g4 {[%clk 0:00:10.9]} 50... g5 {[%clk 0:00:27.2]} 51. Be4 {[%clk 0:00:10.6]}
51... Bd6 {[%clk 0:00:26.3]} 52. Qd7 {[%clk 0:00:06]} 52... Qa1+ {[%clk
0:00:21]} 53. Kg2 {[%clk 0:00:06.1]} 53... Qe5 {[%clk 0:00:19.4]} 54. Bb7 {[%clk
0:00:03.8]} 54... h3+ {[%clk 0:00:18.8]} 55. Kf3 {[%clk 0:00:03.7]} 55... Qf6+
{[%clk 0:00:13.8]} 56. Ke4 {[%clk 0:00:03.9]} 56... Qg6+ {[%clk 0:00:09.7]} 57.
Kd4 {[%clk 0:00:04.1]} 57... h2 {[%clk 0:00:09.3]} 58. Bg2 {[%clk 0:00:03.4]}
58... Qf6+ {[%clk 0:00:09.1]} 59. Kd3 {[%clk 0:00:04]} 59... Kf8 {[%clk
0:00:04.6]} 60. Nd4 {[%clk 0:00:04.4]} 60... Qxf2 {[%clk 0:00:04.5]} 61. Qd8+
{[%clk 0:00:03.2]} 61... Kf7 {[%clk 0:00:04.7]} 62. Qxd6 {[%clk 0:00:03.8]}
62... Qxg2 {[%clk 0:00:05.1]} 63. Qe6+ {[%clk 0:00:04.2]} 63... Kf8 {[%clk
0:00:05.6]} 64. Qf6+ {[%clk 0:00:04.4]} 64... Ke8 {[%clk 0:00:06.3]} 65. Qh8+
{[%clk 0:00:04.7]} 65... Kd7 {[%clk 0:00:07]} 66. Nf3 {[%clk 0:00:03.3]} 66...
Qf1+ {[%clk 0:00:06.2]} 67. Kd4 {[%clk 0:00:02.9]} 67... Qa1+ {[%clk 0:00:06.3]}
0-1

[Event "Late-Titled-Tuesday-Blitz-September-26-2023"]
[Site "Chess.com"]
[Date "2023.09.26"]
[Round "9"]
[White "PapaieDudu"]
[Black "2k28Lakers"]
[Result "0-1"]
[WhiteElo "2405"]
[BlackElo "2565"]
[TimeControl "180+1"]
[EndTime "15:42:25 PDT"]
[Termination "2k28Lakers won by resignation"]

1. e4 {[%clk 0:03:00.9]} 1... a6 {[%clk 0:02:56.6]} 2. d4 {[%clk 0:02:58.3]}
2... h6 {[%clk 0:02:57.4]} 3. Nf3 {[%clk 0:02:56.9]} 3... e6 {[%clk 0:02:57.6]}
4. c4 {[%clk 0:02:56.3]} 4... d5 {[%clk 0:02:52]} 5. cxd5 {[%clk 0:02:51]} 5...
exd5 {[%clk 0:02:52.9]} 6. exd5 {[%clk 0:02:50.1]} 6... Nf6 {[%clk 0:02:52.5]}
7. Nc3 {[%clk 0:02:36.5]} 7... Bb4 {[%clk 0:02:50.7]} 8. Bd3 {[%clk 0:02:35.8]}
8... O-O {[%clk 0:02:50.2]} 9. O-O {[%clk 0:02:33.3]} 9... Nxd5 {[%clk
0:02:45.2]} 10. Ne4 {[%clk 0:02:28.6]} 10... Nc6 {[%clk 0:02:41.5]} 11. Bb1
{[%clk 0:02:25.4]} 11... Bf5 {[%clk 0:02:32.5]} 12. Qc2 {[%clk 0:02:21.3]} 12...
Re8 {[%clk 0:02:30.4]} 13. Nf6+ {[%clk 0:02:12.8]} 13... Qxf6 {[%clk 0:02:29.7]}
14. Qxf5 {[%clk 0:02:13.2]} 14... Qxf5 {[%clk 0:02:30.6]} 15. Bxf5 {[%clk
0:02:13.7]} 15... Rad8 {[%clk 0:02:31.2]} 16. a3 {[%clk 0:02:09.3]} 16... Bf8
{[%clk 0:02:29.3]} 17. Rd1 {[%clk 0:02:08.8]} 17... g6 {[%clk 0:02:24.4]} 18.
Bc2 {[%clk 0:02:03.1]} 18... Bg7 {[%clk 0:02:24]} 19. Bb3 {[%clk 0:01:55.9]}
19... Nxd4 {[%clk 0:02:21.4]} 20. Nxd4 {[%clk 0:01:53.2]} 20... Bxd4 {[%clk
0:02:20.9]} 21. Bxh6 {[%clk 0:01:53.5]} 21... c5 {[%clk 0:02:21]} 22. Kf1 {[%clk
0:01:43.9]} 22... b5 {[%clk 0:02:15.8]} 23. a4 {[%clk 0:01:42.5]} 23... Nb4
{[%clk 0:01:49.6]} 24. Rac1 {[%clk 0:01:30.4]} 24... c4 {[%clk 0:01:39.7]} 25.
Bxc4 {[%clk 0:01:12]} 25... Bxb2 {[%clk 0:00:56]} 26. Rxd8 {[%clk 0:01:11.3]}
26... Rxd8 {[%clk 0:00:56.9]} 27. Rb1 {[%clk 0:01:06.9]} 27... bxc4 {[%clk
0:00:47.4]} 28. Rxb2 {[%clk 0:01:06.9]} 28... a5 {[%clk 0:00:39.5]} 29. Bd2
{[%clk 0:01:01.2]} 29... Nc6 {[%clk 0:00:34.2]} 30. Rc2 {[%clk 0:00:52]} 30...
Rd4 {[%clk 0:00:21.7]} 31. Bc3 {[%clk 0:00:37.8]} 31... Rd3 {[%clk 0:00:20.3]}
32. Be1 {[%clk 0:00:30.4]} 32... Rd4 {[%clk 0:00:18.8]} 33. Bc3 {[%clk
0:00:21.2]} 33... Rd1+ {[%clk 0:00:14.5]} 34. Ke2 {[%clk 0:00:21.2]} 34... Rb1
{[%clk 0:00:10.2]} 35. Bf6 {[%clk 0:00:17.4]} 35... Rb4 {[%clk 0:00:07.6]} 36.
Ra2 {[%clk 0:00:17.4]} 36... Kf8 {[%clk 0:00:06.5]} 37. Bc3 {[%clk 0:00:11.7]}
37... Rb3 {[%clk 0:00:05.5]} 38. Rc2 {[%clk 0:00:09]} 38... Ke8 {[%clk
0:00:05.7]} 39. Bf6 {[%clk 0:00:07.1]} 39... Rb4 {[%clk 0:00:05.7]} 40. Ra2
{[%clk 0:00:05.2]} 40... Kd7 {[%clk 0:00:06.4]} 41. Kd2 {[%clk 0:00:04.9]} 41...
Ke6 {[%clk 0:00:06.2]} 42. Bc3 {[%clk 0:00:04.8]} 42... Rb3 {[%clk 0:00:06.6]}
43. Rc2 {[%clk 0:00:02.3]} 43... Kd5 {[%clk 0:00:07]} 44. Rc1 {[%clk 0:00:02.7]}
44... Nb4 {[%clk 0:00:06.1]} 45. Ke3 {[%clk 0:00:03]} 45... Na2 {[%clk
0:00:05.2]} 46. Rd1+ {[%clk 0:00:02.8]} 46... Kc6 {[%clk 0:00:04.4]} 47. Rd2
{[%clk 0:00:01.7]} 47... Nxc3 {[%clk 0:00:04.3]} 48. Kd4 {[%clk 0:00:02.4]}
48... Nb1 {[%clk 0:00:04.4]} 49. Rc2 {[%clk 0:00:02.3]} 49... Na3 {[%clk
0:00:04.7]} 50. Rc1 {[%clk 0:00:02.3]} 50... Rd3+ {[%clk 0:00:05.1]} 51. Ke4
{[%clk 0:00:02.8]} 51... Kc5 {[%clk 0:00:06]} 52. g4 {[%clk 0:00:03.1]} 52... g5
{[%clk 0:00:05.4]} 53. h4 {[%clk 0:00:03.1]} 53... gxh4 {[%clk 0:00:06.3]} 54.
f4 {[%clk 0:00:03.4]} 54... Rg3 {[%clk 0:00:05.3]} 55. Kf5 {[%clk 0:00:03.1]}
55... c3 {[%clk 0:00:05.7]} 56. Rh1 {[%clk 0:00:02.5]} 56... c2 {[%clk
0:00:05.6]} 57. g5 {[%clk 0:00:02.4]} 57... h3 {[%clk 0:00:06]} 58. Kf6 {[%clk
0:00:02.3]} 58... h2 {[%clk 0:00:06.2]} 59. f5 {[%clk 0:00:02.5]} 59... Rg1
{[%clk 0:00:06.2]} 60. Rxh2 {[%clk 0:00:03.1]} 60... c1=Q {[%clk 0:00:05.9]} 61.
g6 {[%clk 0:00:02.7]} 61... fxg6 {[%clk 0:00:04.9]} 62. fxg6 {[%clk 0:00:03.6]}
62... Qc3+ {[%clk 0:00:04.8]} 63. Kf7 {[%clk 0:00:03.2]} 63... Qf3+ {[%clk
0:00:05.4]} 64. Kg8 {[%clk 0:00:03]} 64... Rxg6+ {[%clk 0:00:05.7]} 65. Kh8
{[%clk 0:00:03.1]} 65... Qf8+ {[%clk 0:00:06]} 0-1

[Event "Late-Titled-Tuesday-Blitz-September-26-2023"]
[Site "Chess.com"]
[Date "2023.09.26"]
[Round "9"]
[White "Iball95"]
[Black "korason34"]
[Result "1-0"]
[WhiteElo "2759"]
[BlackElo "2652"]
[TimeControl "180+1"]
[EndTime "15:42:58 PDT"]
[Termination "Iball95 won by checkmate"]

1. e4 {[%clk 0:03:00]} 1... c5 {[%clk 0:02:52.3]} 2. Nf3 {[%clk 0:03:00]} 2...
d6 {[%clk 0:02:52.7]} 3. Nc3 {[%clk 0:02:59.7]} 3... a6 {[%clk 0:02:51.6]} 4. d4
{[%clk 0:02:59.5]} 4... cxd4 {[%clk 0:02:52.5]} 5. Qxd4 {[%clk 0:02:59.7]} 5...
Nc6 {[%clk 0:02:52.1]} 6. Qd3 {[%clk 0:02:59.3]} 6... Nf6 {[%clk 0:02:51.4]} 7.
Nd5 {[%clk 0:02:59.2]} 7... Nd7 {[%clk 0:02:44.8]} 8. c4 {[%clk 0:02:58.8]} 8...
e6 {[%clk 0:02:44.9]} 9. Nc3 {[%clk 0:02:58]} 9... Be7 {[%clk 0:02:42.5]} 10.
Be3 {[%clk 0:02:57.7]} 10... O-O {[%clk 0:02:41.2]} 11. Be2 {[%clk 0:02:57.9]}
11... b6 {[%clk 0:02:38.6]} 12. O-O {[%clk 0:02:57.2]} 12... Bb7 {[%clk
0:02:39.2]} 13. Rac1 {[%clk 0:02:53.8]} 13... Rc8 {[%clk 0:02:39.5]} 14. Rfd1
{[%clk 0:02:53.4]} 14... Re8 {[%clk 0:01:57]} 15. b3 {[%clk 0:02:50.7]} 15... h6
{[%clk 0:01:52.8]} 16. h3 {[%clk 0:02:48.2]} 16... Bf8 {[%clk 0:01:51]} 17. Bf4
{[%clk 0:02:43.7]} 17... Nde5 {[%clk 0:01:43.9]} 18. Qd2 {[%clk 0:02:41.6]}
18... Nxf3+ {[%clk 0:01:41.4]} 19. Bxf3 {[%clk 0:02:42.3]} 19... Ne5 {[%clk
0:01:41.9]} 20. Be2 {[%clk 0:02:41.6]} 20... Qf6 {[%clk 0:01:40.6]} 21. Be3
{[%clk 0:02:36]} 21... Nd7 {[%clk 0:01:34.1]} 22. f4 {[%clk 0:02:09]} 22... Nc5
{[%clk 0:01:28.7]} 23. Bf3 {[%clk 0:02:08.6]} 23... Qg6 {[%clk 0:01:28.7]} 24.
Re1 {[%clk 0:01:37.2]} 24... b5 {[%clk 0:01:22.3]} 25. cxb5 {[%clk 0:01:29.3]}
25... axb5 {[%clk 0:01:21.9]} 26. f5 {[%clk 0:00:48.1]} 26... exf5 {[%clk
0:01:14.5]} 27. exf5 {[%clk 0:00:49]} 27... Qxf5 {[%clk 0:01:15.2]} 28. Bxb7
{[%clk 0:00:38.1]} 28... Nxb7 {[%clk 0:01:16.1]} 29. Qd5 {[%clk 0:00:38.1]}
29... Qxd5 {[%clk 0:01:03.1]} 30. Nxd5 {[%clk 0:00:39]} 30... Rxc1 {[%clk
0:01:03.3]} 31. Rxc1 {[%clk 0:00:39.4]} 31... Re5 {[%clk 0:01:03.9]} 32. Rd1
{[%clk 0:00:37.5]} 32... Nc5 {[%clk 0:00:58.9]} 33. Kf2 {[%clk 0:00:14.5]} 33...
Ne4+ {[%clk 0:00:58.9]} 34. Kf3 {[%clk 0:00:14.4]} 34... Nc5 {[%clk 0:00:53.1]}
35. Bxc5 {[%clk 0:00:09.5]} 35... dxc5 {[%clk 0:00:53]} 36. a4 {[%clk
0:00:10.4]} 36... bxa4 {[%clk 0:00:48.8]} 37. bxa4 {[%clk 0:00:11.3]} 37... Re6
{[%clk 0:00:45.3]} 38. Ra1 {[%clk 0:00:08.6]} 38... Ra6 {[%clk 0:00:45.4]} 39.
Ke4 {[%clk 0:00:07.7]} 39... Bd6 {[%clk 0:00:42.2]} 40. Kd3 {[%clk 0:00:07.3]}
40... Be5 {[%clk 0:00:39.6]} 41. Ra2 {[%clk 0:00:07.4]} 41... Ra5 {[%clk
0:00:38.8]} 42. Kc4 {[%clk 0:00:08]} 42... Bd4 {[%clk 0:00:39.3]} 43. Ne7+
{[%clk 0:00:06.9]} 43... Kf8 {[%clk 0:00:37.7]} 44. Nc6 {[%clk 0:00:07.8]} 44...
Ra6 {[%clk 0:00:35.7]} 45. Nxd4 {[%clk 0:00:06.5]} 45... cxd4 {[%clk 0:00:36.1]}
46. Kxd4 {[%clk 0:00:07.4]} 46... Ke7 {[%clk 0:00:36.5]} 47. Kc5 {[%clk
0:00:08.1]} 47... Kd7 {[%clk 0:00:36.7]} 48. a5 {[%clk 0:00:08.7]} 48... Kc7
{[%clk 0:00:36.6]} 49. Kb5 {[%clk 0:00:09.5]} 49... Rf6 {[%clk 0:00:34]} 50. Re2
{[%clk 0:00:08.5]} 50... Rf5+ {[%clk 0:00:32.8]} 51. Kb4 {[%clk 0:00:09.4]}
51... Kb7 {[%clk 0:00:31]} 52. Rc2 {[%clk 0:00:07.1]} 52... h5 {[%clk
0:00:27.2]} 53. Rc5 {[%clk 0:00:07]} 53... Rf4+ {[%clk 0:00:24.8]} 54. Rc4
{[%clk 0:00:07.4]} 54... Rf2 {[%clk 0:00:24.3]} 55. g3 {[%clk 0:00:05.1]} 55...
Rg2 {[%clk 0:00:21]} 56. Rc3 {[%clk 0:00:05.2]} 56... Rb2+ {[%clk 0:00:18.9]}
57. Ka4 {[%clk 0:00:04.6]} 57... Ra2+ {[%clk 0:00:18.5]} 58. Kb5 {[%clk
0:00:05.3]} 58... Rb2+ {[%clk 0:00:18.6]} 59. Ka4 {[%clk 0:00:06.2]} 59... Rh2
{[%clk 0:00:17.6]} 60. h4 {[%clk 0:00:05.8]} 60... Ka6 {[%clk 0:00:17.2]} 61.
Rc6+ {[%clk 0:00:06.4]} 61... Kb7 {[%clk 0:00:17.7]} 62. Rd6 {[%clk 0:00:06.2]}
62... Kc7 {[%clk 0:00:16.5]} 63. Rd5 {[%clk 0:00:06.4]} 63... Rf2 {[%clk
0:00:16.4]} 64. Rxh5 {[%clk 0:00:05.7]} 64... Rf3 {[%clk 0:00:16.2]} 65. Rg5
{[%clk 0:00:05.8]} 65... g6 {[%clk 0:00:16.5]} 66. Kb5 {[%clk 0:00:06.4]} 66...
Kb7 {[%clk 0:00:16.6]} 67. Kc5 {[%clk 0:00:06.9]} 67... Rf6 {[%clk 0:00:13.5]}
68. g4 {[%clk 0:00:06.5]} 68... Ra6 {[%clk 0:00:12.3]} 69. Kd4 {[%clk
0:00:06.6]} 69... Kc7 {[%clk 0:00:11.8]} 70. h5 {[%clk 0:00:06.9]} 70... gxh5
{[%clk 0:00:12]} 71. gxh5 {[%clk 0:00:07.8]} 71... Rd6+ {[%clk 0:00:10.3]} 72.
Rd5 {[%clk 0:00:08.4]} 72... Rh6 {[%clk 0:00:09.5]} 73. Kc5 {[%clk 0:00:08.6]}
73... Ra6 {[%clk 0:00:08.3]} 74. Kb5 {[%clk 0:00:09.3]} 74... Rf6 {[%clk
0:00:06.3]} 75. a6 {[%clk 0:00:07.8]} 75... Rf1 {[%clk 0:00:06.3]} 76. Rc5+
{[%clk 0:00:07.3]} 76... Kb8 {[%clk 0:00:06]} 77. Kb6 {[%clk 0:00:05.8]} 77...
Rf6+ {[%clk 0:00:05.2]} 78. Rc6 {[%clk 0:00:05.9]} 78... Rf1 {[%clk 0:00:05.8]}
79. a7+ {[%clk 0:00:06.6]} 79... Ka8 {[%clk 0:00:05.7]} 80. Rc8# {[%clk
0:00:07.2]} 1-0

[Event "Late-Titled-Tuesday-Blitz-September-26-2023"]
[Site "Chess.com"]
[Date "2023.09.26"]
[Round "9"]
[White "YouShallNotPass001"]
[Black "Saif_Malek04"]
[Result "1-0"]
[WhiteElo "2375"]
[BlackElo "2566"]
[TimeControl "180+1"]
[EndTime "15:43:05 PDT"]
[Termination "YouShallNotPass001 won by checkmate"]

1. Nf3 {[%clk 0:03:00.9]} 1... c6 {[%clk 0:03:00.9]} 2. e3 {[%clk 0:03:01.8]}
2... d6 {[%clk 0:03:01.8]} 3. Be2 {[%clk 0:03:01.8]} 3... Nd7 {[%clk 0:03:02.7]}
4. O-O {[%clk 0:03:02.5]} 4... Ngf6 {[%clk 0:03:03.6]} 5. d4 {[%clk 0:03:03]}
5... g6 {[%clk 0:03:04.5]} 6. c4 {[%clk 0:03:03.2]} 6... Bg7 {[%clk 0:03:05.4]}
7. Nc3 {[%clk 0:03:03.7]} 7... O-O {[%clk 0:03:06.3]} 8. b4 {[%clk 0:03:03.8]}
8... Qc7 {[%clk 0:03:07]} 9. a4 {[%clk 0:03:03.7]} 9... e5 {[%clk 0:03:07.4]}
10. b5 {[%clk 0:02:59.3]} 10... c5 {[%clk 0:03:05.7]} 11. dxe5 {[%clk
0:02:52.5]} 11... dxe5 {[%clk 0:03:04.9]} 12. Bb2 {[%clk 0:02:52.3]} 12... Rd8
{[%clk 0:03:03.4]} 13. Qc2 {[%clk 0:02:48.8]} 13... Nf8 {[%clk 0:03:01.7]} 14.
Rfd1 {[%clk 0:02:45.6]} 14... Bg4 {[%clk 0:03:00.5]} 15. h3 {[%clk 0:02:43.7]}
15... e4 {[%clk 0:01:39.8]} 16. hxg4 {[%clk 0:01:46.4]} 16... exf3 {[%clk
0:01:31.1]} 17. Bxf3 {[%clk 0:01:47.3]} 17... g5 {[%clk 0:01:19.8]} 18. Nd5
{[%clk 0:01:26.3]} 18... Nxd5 {[%clk 0:01:18.3]} 19. Rxd5 {[%clk 0:01:18.9]}
19... Rxd5 {[%clk 0:01:16.7]} 20. Bxd5 {[%clk 0:01:16.4]} 20... Ng6 {[%clk
0:01:16.1]} 21. Bxg7 {[%clk 0:01:14.8]} 21... Kxg7 {[%clk 0:01:17]} 22. Qf5
{[%clk 0:01:14.5]} 22... h6 {[%clk 0:00:52.5]} 23. Qe4 {[%clk 0:00:43.3]} 23...
Rb8 {[%clk 0:00:33.1]} 24. a5 {[%clk 0:00:40]} 24... Ne5 {[%clk 0:00:18.6]} 25.
b6 {[%clk 0:00:26]} 25... axb6 {[%clk 0:00:17]} 26. axb6 {[%clk 0:00:26]} 26...
Qd6 {[%clk 0:00:16.3]} 27. g3 {[%clk 0:00:25.1]} 27... Qf6 {[%clk 0:00:13.9]}
28. Ra7 {[%clk 0:00:19]} 28... Ng6 {[%clk 0:00:03.5]} 29. Qf5 {[%clk 0:00:12.8]}
29... Qxb6 {[%clk 0:00:02.2]} 30. Qxf7+ {[%clk 0:00:12.3]} 30... Kh8 {[%clk
0:00:02.9]} 31. Rxb7 {[%clk 0:00:10.3]} 31... Rxb7 {[%clk 0:00:02.9]} 32. Qxb7
{[%clk 0:00:10.9]} 32... Qxb7 {[%clk 0:00:03]} 33. Bxb7 {[%clk 0:00:11]} 33...
Ne5 {[%clk 0:00:03.9]} 34. Bd5 {[%clk 0:00:10]} 34... Nxg4 {[%clk 0:00:04.4]}
35. Kg2 {[%clk 0:00:09.9]} 35... Kg7 {[%clk 0:00:04.5]} 36. Kf3 {[%clk 0:00:10]}
36... Ne5+ {[%clk 0:00:04.5]} 37. Ke4 {[%clk 0:00:10.3]} 37... Nd7 {[%clk
0:00:05.3]} 38. Bc6 {[%clk 0:00:08.7]} 38... Nb6 {[%clk 0:00:05.5]} 39. Bb5
{[%clk 0:00:07.7]} 39... Kf6 {[%clk 0:00:05.8]} 40. f4 {[%clk 0:00:07.3]} 40...
g4 {[%clk 0:00:05.5]} 41. Kd3 {[%clk 0:00:06.8]} 41... h5 {[%clk 0:00:05.8]} 42.
e4 {[%clk 0:00:07.2]} 42... Ke6 {[%clk 0:00:06.1]} 43. Ke3 {[%clk 0:00:06.7]}
43... Nc8 {[%clk 0:00:06.4]} 44. e5 {[%clk 0:00:06.1]} 44... Ne7 {[%clk
0:00:06.7]} 45. Ke4 {[%clk 0:00:06.1]} 45... Nc8 {[%clk 0:00:02.5]} 46. f5+
{[%clk 0:00:05.9]} 46... Kf7 {[%clk 0:00:03.2]} 47. Kf4 {[%clk 0:00:05.8]} 47...
Ne7 {[%clk 0:00:03.5]} 48. Kg5 {[%clk 0:00:05.6]} 48... h4 {[%clk 0:00:02.6]}
49. Kxh4 {[%clk 0:00:05.1]} 49... Nxf5+ {[%clk 0:00:02.9]} 50. Kxg4 {[%clk
0:00:05.6]} 50... Nd4 {[%clk 0:00:03.7]} 51. Kf4 {[%clk 0:00:05.6]} 51... Ke6
{[%clk 0:00:04.6]} 52. Ba6 {[%clk 0:00:04.7]} 52... Ne2+ {[%clk 0:00:05.2]} 53.
Kf3 {[%clk 0:00:04.2]} 53... Nd4+ {[%clk 0:00:05.5]} 54. Ke4 {[%clk 0:00:04.6]}
54... Ne2 {[%clk 0:00:03.7]} 55. g4 {[%clk 0:00:04.7]} 55... Ng3+ {[%clk
0:00:04.3]} 56. Kf4 {[%clk 0:00:05]} 56... Ne2+ {[%clk 0:00:04.8]} 57. Ke3
{[%clk 0:00:05.3]} 57... Nd4 {[%clk 0:00:04.5]} 58. Ke4 {[%clk 0:00:05.7]} 58...
Ne2 {[%clk 0:00:04.9]} 59. Bc8+ {[%clk 0:00:05.5]} 59... Ke7 {[%clk 0:00:05]}
60. Bf5 {[%clk 0:00:06]} 60... Nc3+ {[%clk 0:00:03.4]} 61. Kd3 {[%clk 0:00:06]}
61... Na4 {[%clk 0:00:03.9]} 62. Ke4 {[%clk 0:00:04.9]} 62... Nb6 {[%clk
0:00:04.5]} 63. Kd3 {[%clk 0:00:04.7]} 63... Kf7 {[%clk 0:00:05.1]} 64. g5
{[%clk 0:00:05.2]} 64... Kg7 {[%clk 0:00:05.3]} 65. g6 {[%clk 0:00:05.6]} 65...
Na4 {[%clk 0:00:04.7]} 66. Kc2 {[%clk 0:00:04.8]} 66... Nb6 {[%clk 0:00:03.9]}
67. Kb3 {[%clk 0:00:05.1]} 67... Kf8 {[%clk 0:00:02.9]} 68. Kc3 {[%clk
0:00:04.4]} 68... Ke7 {[%clk 0:00:03.5]} 69. Kd3 {[%clk 0:00:04.9]} 69... Kf8
{[%clk 0:00:03.8]} 70. Be6 {[%clk 0:00:04.6]} 70... Kg7 {[%clk 0:00:02.4]} 71.
Bf7 {[%clk 0:00:05.1]} 71... Nc8 {[%clk 0:00:01.9]} 72. Ke4 {[%clk 0:00:05.1]}
72... Ne7 {[%clk 0:00:02.8]} 73. e6 {[%clk 0:00:04.9]} 73... Kf6 {[%clk
0:00:02.9]} 74. Kf4 {[%clk 0:00:05.3]} 74... Kg7 {[%clk 0:00:03.2]} 75. Ke5
{[%clk 0:00:05.6]} 75... Nc8 {[%clk 0:00:02.2]} 76. Kd5 {[%clk 0:00:05.6]} 76...
Ne7+ {[%clk 0:00:03.1]} 77. Kxc5 {[%clk 0:00:06]} 77... Nf5 {[%clk 0:00:04]} 78.
Kd5 {[%clk 0:00:06.1]} 78... Ne7+ {[%clk 0:00:04.9]} 79. Kd6 {[%clk 0:00:06.5]}
79... Nf5+ {[%clk 0:00:05.6]} 80. Kd7 {[%clk 0:00:07]} 80... Ne7 {[%clk
0:00:06.3]} 81. Kxe7 {[%clk 0:00:06.9]} 81... Kh8 {[%clk 0:00:07.1]} 82. Kd7
{[%clk 0:00:07.5]} 82... Kg7 {[%clk 0:00:07.8]} 83. e7 {[%clk 0:00:07.7]} 83...
Kh8 {[%clk 0:00:08.7]} 84. c5 {[%clk 0:00:07.7]} 84... Kg7 {[%clk 0:00:09.6]}
85. c6 {[%clk 0:00:07.8]} 85... Kh6 {[%clk 0:00:10.5]} 86. e8=Q {[%clk
0:00:07.3]} 86... Kg7 {[%clk 0:00:11.4]} 87. Qg8+ {[%clk 0:00:07]} 87... Kh6
{[%clk 0:00:12.3]} 88. g7 {[%clk 0:00:07.6]} 88... Kg5 {[%clk 0:00:13.2]} 89.
Qh8 {[%clk 0:00:07.7]} 89... Kf6 {[%clk 0:00:14.1]} 90. g8=Q+ {[%clk 0:00:07.6]}
90... Kf5 {[%clk 0:00:14.6]} 91. Qg6+ {[%clk 0:00:07.8]} 91... Kf4 {[%clk
0:00:15.2]} 92. Qh4+ {[%clk 0:00:08.2]} 92... Kf3 {[%clk 0:00:16.1]} 93. Qgg3+
{[%clk 0:00:08]} 93... Ke2 {[%clk 0:00:17]} 94. Qhh2+ {[%clk 0:00:08.1]} 94...
Kf1 {[%clk 0:00:17.9]} 95. Qgg1# {[%clk 0:00:08.5]} 1-0

[Event "Late-Titled-Tuesday-Blitz-September-26-2023"]
[Site "Chess.com"]
[Date "2023.09.26"]
[Round "10"]
[White "Inepton_Fermion"]
[Black "LeninGuerra"]
[Result "0-1"]
[WhiteElo "2362"]
[BlackElo "2529"]
[TimeControl "180+1"]
[EndTime "15:46:40 PDT"]
[Termination "LeninGuerra won by resignation"]

1. Nf3 {[%clk 0:03:00.9]} 1... Nf6 {[%clk 0:02:58.9]} 2. b3 {[%clk 0:03:01.2]}
2... e6 {[%clk 0:02:59.1]} 3. Bb2 {[%clk 0:03:02.1]} 3... c5 {[%clk 0:02:57.2]}
4. c4 {[%clk 0:03:01.6]} 4... Be7 {[%clk 0:02:55.3]} 5. g3 {[%clk 0:03:02]} 5...
b6 {[%clk 0:02:55.7]} 6. Bg2 {[%clk 0:03:02.2]} 6... Bb7 {[%clk 0:02:56.3]} 7.
O-O {[%clk 0:03:03.1]} 7... O-O {[%clk 0:02:55.9]} 8. Nc3 {[%clk 0:02:59.9]}
8... a6 {[%clk 0:02:54.7]} 9. d4 {[%clk 0:02:56.3]} 9... cxd4 {[%clk 0:02:54.1]}
10. Qxd4 {[%clk 0:02:57.2]} 10... d6 {[%clk 0:02:53.8]} 11. Rad1 {[%clk
0:02:48.4]} 11... Nbd7 {[%clk 0:02:51.8]} 12. e4 {[%clk 0:02:20]} 12... Qc7
{[%clk 0:02:50]} 13. Rfe1 {[%clk 0:02:18.8]} 13... Ne5 {[%clk 0:02:48.5]} 14.
Qe3 {[%clk 0:02:05.3]} 14... Rac8 {[%clk 0:02:39.9]} 15. Nd4 {[%clk 0:02:03.1]}
15... Qb8 {[%clk 0:02:34.8]} 16. h3 {[%clk 0:02:00.6]} 16... Nc6 {[%clk
0:02:09.5]} 17. Nde2 {[%clk 0:01:55.3]} 17... Rfd8 {[%clk 0:02:05.5]} 18. Kh2
{[%clk 0:01:46]} 18... Ne5 {[%clk 0:02:04]} 19. f4 {[%clk 0:01:43.6]} 19...
Neg4+ {[%clk 0:02:03.3]} 0-1